bitfinex/quotes_BTCUSD_20240719
["timestamp","ask_amount","ask_price","bid_price","bid_amount"]
[1721357066897,0.0605,63860.0,63858.0,0.158597]
[1721357067692,0.0605,63860.0,63859.0,0.006]
[1721357067891,0.0605,63860.0,63859.0,0.008]
[1721357068089,0.0605,63860.0,63859.0,0.002]
[1721357068801,0.0605,63860.0,63859.0,0.158594]
[1721357069224,0.07496347,63860.0,63859.0,0.158594]
[1721357069431,0.07496347,63860.0,63859.0,0.156594]
[1721357069632,0.07496347,63860.0,63859.0,0.158594]
[1721357070142,0.07496347,63860.0,63859.0,0.008]
[1721357070842,0.07496347,63860.0,63858.0,0.156597]
[1721357071277,0.07496347,63860.0,63859.0,0.007]
[1721357071697,0.07496347,63860.0,63859.0,0.01]
[1721357072088,0.07496347,63860.0,63859.0,0.003]
[1721357072499,0.07496347,63860.0,63858.0,0.156597]
[1721357072706,0.07579347,63860.0,63858.0,0.156597]
[1721357072913,0.07579347,63860.0,63859.0,0.004]
[1721357073677,0.07579347,63860.0,63859.0,0.160594]
[1721357074482,0.07579347,63860.0,63859.0,0.170594]
[1721357074931,0.07579347,63860.0,63859.0,0.166594]
[1721357076425,0.07579347,63860.0,63859.0,0.172594]
[1721357076825,0.07579347,63860.0,63859.0,0.178594]
[1721357077035,0.07579347,63860.0,63859.0,0.168594]
[1721357077407,0.07579347,63860.0,63859.0,0.178594]
[1721357079382,0.07579347,63860.0,63859.0,0.022]
[1721357080801,0.07579347,63860.0,63859.0,0.012]
[1721357081081,0.07579347,63860.0,63859.0,0.022]
[1721357081406,0.07579347,63860.0,63859.0,0.01]
[1721357081604,0.07579347,63860.0,63859.0,0.016]
[1721357081605,0.64328844,63860.0,63859.0,0.016]
[1721357081784,0.95647344,63860.0,63859.0,0.016]
[1721357081968,1.26965844,63860.0,63859.0,0.016]
[1721357082817,1.26965844,63860.0,63859.0,0.01]
[1721357084079,0.1404,63853.0,63849.0,0.156619]
[1721357084269,0.1404,63853.0,63849.0,0.31100074]
[1721357084473,0.01445918,63852.0,63849.0,0.31100074]
[1721357086224,0.01445918,63852.0,63849.0,0.31800074]
[1721357086877,0.01445918,63852.0,63850.0,0.156617]
[1721357087049,0.01445918,63852.0,63851.0,0.156614]
[1721357088772,0.01445918,63852.0,63851.0,0.168614]
[1721357089138,0.01445918,63852.0,63851.0,0.176614]
[1721357089534,0.156607,63855.0,63851.0,0.176614]
[1721357089740,0.01443309,63852.0,63851.0,0.176614]
[1721357089978,0.156607,63855.0,63851.0,0.176614]
[1721357090308,0.01443309,63854.0,63851.0,0.176614]
[1721357090734,0.01443309,63854.0,63851.0,0.156614]
[1721357091059,0.01443309,63854.0,63851.0,0.168614]
[1721357091256,0.01443309,63854.0,63851.0,0.160614]
[1721357091460,0.01443309,63854.0,63851.0,0.156614]
[1721357091715,0.0781,63856.0,63853.0,0.313219]
[1721357091914,0.0781,63856.0,63855.0,0.469813]
[1721357092032,0.0781,63856.0,63855.0,0.62419474]
[1721357093168,0.0625,63859.0,63858.0,0.156597]
[1721357095371,0.0625,63859.0,63858.0,0.161597]
[1721357095596,0.0625,63859.0,63858.0,0.156597]
[1721357095915,0.0625,63859.0,63858.0,0.157597]
[1721357097090,0.0625,63859.0,63858.0,0.162597]
[1721357097490,0.0625,63859.0,63858.0,0.164597]
[1721357098093,0.0625,63859.0,63858.0,0.162597]
[1721357098335,0.0625,63859.0,63858.0,0.156597]
[1721357098479,0.0625,63859.0,63858.0,0.158597]
[1721357098807,0.0625,63859.0,63858.0,0.164597]
[1721357099215,0.07694261,63859.0,63858.0,0.164597]
[1721357099426,0.0625,63859.0,63858.0,0.164597]
[1721357100233,0.0625,63859.0,63858.0,0.156597]
[1721357100435,0.0625,63859.0,63858.0,0.162597]
[1721357100631,0.0625,63859.0,63858.0,0.164597]
[1721357101196,0.07694261,63859.0,63858.0,0.162597]
[1721357101399,0.07694261,63859.0,63858.0,0.156597]
[1721357101606,0.01444261,63859.0,63858.0,0.475791]
[1721357101823,0.01444261,63859.0,63858.0,0.469791]
[1721357103343,0.01444261,63859.0,63858.0,1.25656074]
[1721357103467,0.01444261,63859.0,63858.0,1.33096074]
[1721357103667,0.00083,63860.0,63859.0,1.096161]
[1721357103867,0.00083,63860.0,63859.0,1.27354274]
[1721357104312,0.00083,63860.0,63859.0,1.36404274]
[1721357104580,0.00083,63860.0,63859.0,1.49410597]
[1721357104959,0.00083,63860.0,63859.0,1.49910597]
[1721357105161,0.00083,63860.0,63859.0,1.49410738]
[1721357105367,0.00083,63860.0,63859.0,1.36404274]
[1721357105911,0.00083,63860.0,63859.0,1.41404274]
[1721357106113,0.00083,63860.0,63859.0,1.60410329]
[1721357106327,0.00083,63860.0,63859.0,1.48104274]
[1721357106500,0.00083,63860.0,63859.0,1.61110354]
[1721357106730,0.00083,63860.0,63859.0,1.56110354]
[1721357106937,0.00083,63860.0,63859.0,1.43204274]
[1721357107142,0.00083,63860.0,63859.0,1.42404274]
[1721357107300,0.00083,63860.0,63859.0,1.11085374]
[1721357107498,0.00083,63860.0,63859.0,1.06285374]
[1721357108257,0.00083,63860.0,63859.0,1.07085374]
[1721357110255,0.00083,63860.0,63859.0,1.43404274]
[1721357110454,0.00083,63860.0,63859.0,1.38404274]
[1721357110908,0.00083,63860.0,63859.0,1.54834274]
[1721357111507,0.00083,63860.0,63859.0,1.64834274]
[1721357111910,0.00083,63860.0,63859.0,1.77840263]
[1721357112437,0.00083,63860.0,63859.0,1.68790263]
[1721357113200,0.00083,63860.0,63859.0,1.55784274]
[1721357113528,0.00083,63860.0,63859.0,1.68790162]
[1721357113737,0.00083,63860.0,63859.0,1.63790162]
[1721357114130,0.00083,63860.0,63859.0,1.68790162]
[1721357114363,0.00083,63860.0,63859.0,1.55784274]
[1721357114635,0.00083,63860.0,63859.0,1.68789742]
[1721357115200,0.00083,63860.0,63859.0,2.16618642]
[1721357115418,0.00083,63860.0,63859.0,2.5134297]
[1721357115640,0.00083,63860.0,63859.0,2.23653584]
[1721357116109,0.00083,63860.0,63859.0,2.6072698]
[1721357116291,0.00083,63860.0,63859.0,2.5952698]
[1721357116613,0.00083,63860.0,63859.0,2.60917725]
[1721357116764,0.00083,63860.0,63859.0,2.58573327]
[1721357116966,0.00083,63860.0,63859.0,2.59517725]
[1721357117149,0.00835,63876.0,63875.0,0.844677]
[1721357117356,0.00835,63876.0,63875.0,1.43516974]
[1721357117582,0.02294265,63876.0,63875.0,1.43516974]
[1721357117779,0.00835,63876.0,63875.0,1.43516974]
[1721357119183,0.00835,63876.0,63875.0,1.44416974]
[1721357120963,0.00835,63876.0,63875.0,1.45216974]
[1721357121241,0.00835,63876.0,63875.0,1.39026974]
[1721357121459,0.00835,63876.0,63875.0,1.40326974]
[1721357121698,0.15555,63876.0,63875.0,1.40326974]
[1721357122243,0.09095,63876.0,63875.0,1.40326974]
[1721357125563,0.00835,63876.0,63875.0,1.40326974]
[1721357127172,0.00835,63876.0,63875.0,1.56496974]
[1721357128676,0.00835,63876.0,63875.0,1.57545338]
[1721357129546,0.00835,63876.0,63875.0,1.52545338]
[1721357129750,0.00835,63876.0,63875.0,1.57545338]
[1721357130131,0.00835,63876.0,63875.0,1.70547087]
[1721357130338,0.00835,63876.0,63875.0,1.70547045]
[1721357130712,0.00835,63876.0,63875.0,1.57545338]
[1721357130938,0.00835,63876.0,63875.0,1.7054715]
[1721357132666,0.00835,63876.0,63875.0,1.70547077]
[1721357134407,0.00835,63876.0,63875.0,1.79587077]
[1721357135646,0.00835,63876.0,63875.0,1.66585338]
[1721357138320,0.00835,63876.0,63875.0,2.45717538]
[1721357138542,0.14253,63890.0,63889.0,0.782605]
[1721357138759,0.14253,63890.0,63889.0,1.05038674]
[1721357139106,0.14253,63890.0,63889.0,1.36342874]
[1721357140286,0.14253,63890.0,63889.0,1.36742874]
[1721357140889,0.14253,63890.0,63889.0,1.37542874]
[1721357141947,0.14253,63890.0,63889.0,1.50542709]
[1721357142350,0.14253,63890.0,63889.0,1.37542874]
[1721357142558,0.14253,63890.0,63889.0,1.5054283]
[1721357143485,0.14253,63890.0,63889.0,1.37542874]
[1721357144576,0.14253,63890.0,63889.0,1.50542946]
[1721357145359,0.14253,63890.0,63889.0,1.50533824]
[1721357146528,0.14253,63890.0,63889.0,0.44938395]
[1721357146668,0.389449,63890.0,63889.0,0.14199847]
[1721357146870,1.328563,63890.0,63889.0,0.14199847]
[1721357147073,1.0279924,63890.0,63889.0,0.14199847]
[1721357147794,1.0279924,63890.0,63889.0,0.13799847]
[1721357148202,0.9375924,63890.0,63889.0,0.12999847]
[1721357148566,0.9375924,63890.0,63889.0,0.13199847]
[1721357148958,0.0771,63883.0,63880.0,0.156543]
[1721357149138,0.0632,63882.0,63881.0,0.15438174]
[1721357149360,0.1527461,63882.0,63881.0,0.15438174]
[1721357151062,0.1527461,63882.0,63881.0,0.94408674]
[1721357151234,0.0895461,63882.0,63881.0,1.41019076]
[1721357151434,0.0771,63882.0,63881.0,1.41019076]
[1721357151635,0.0777,63887.0,63884.0,0.939201]
[1721357151994,0.0777,63887.0,63886.0,0.156528]
[1721357152205,0.0777,63887.0,63886.0,0.93702374]
[1721357152479,0.0777,63887.0,63886.0,0.96002374]
[1721357153119,0.00083,63890.0,63889.0,0.626084]
[1721357153328,0.00083,63890.0,63889.0,0.95998674]
[1721357156003,0.00083,63890.0,63889.0,0.96698674]
[1721357156461,0.00083,63890.0,63889.0,0.96898674]
[1721357156661,0.00083,63890.0,63889.0,0.97904769]
[1721357156819,0.00083,63890.0,63889.0,0.97704769]
[1721357157219,0.00083,63890.0,63889.0,0.98004769]
[1721357165505,0.04583,63890.0,63889.0,0.98004769]
[1721357168854,0.12413,63890.0,63889.0,0.19744269]
[1721357169265,0.13659458,63890.0,63889.0,0.19744269]
[1721357169462,0.13659458,63890.0,63889.0,0.35396369]
[1721357170588,0.16845958,63890.0,63889.0,0.35487669]
[1721357173737,0.16845958,63890.0,63889.0,0.66791869]
[1721357180099,0.16845958,63890.0,63889.0,0.98096069]
[1721357180428,0.077695,63890.0,63889.0,1.42400826]
[1721357180612,0.077695,63890.0,63889.0,1.424009]
[1721357181987,0.077695,63890.0,63889.0,1.421009]
[1721357182190,0.077695,63890.0,63889.0,1.29100269]
[1721357182397,0.077695,63890.0,63889.0,1.42200534]
[1721357183225,0.077695,63890.0,63889.0,1.43400534]
[1721357185504,0.077695,63890.0,63889.0,1.43400516]
[1721357188766,0.077695,63890.0,63889.0,1.43400574]
[1721357191789,0.077695,63890.0,63889.0,1.43400282]
[1721357194186,0.077695,63890.0,63889.0,1.42600282]
[1721357194595,0.077695,63890.0,63889.0,1.43600282]
[1721357195048,0.077695,63890.0,63889.0,1.30600269]
[1721357195265,0.077695,63890.0,63889.0,1.43600105]
[1721357195465,0.077695,63890.0,63889.0,1.42400105]
[1721357195677,0.077695,63890.0,63889.0,1.51540105]
[1721357195880,0.077695,63890.0,63889.0,1.52940105]
[1721357197466,0.077695,63890.0,63889.0,1.51840105]
[1721357197684,0.077695,63890.0,63889.0,1.52840105]
[1721357198188,0.077695,63890.0,63889.0,1.51840105]
[1721357198387,0.077695,63890.0,63889.0,1.51840146]
[1721357198706,0.077695,63890.0,63889.0,1.52940146]
[1721357201707,0.077695,63890.0,63889.0,1.52939925]
[1721357202538,0.077695,63890.0,63889.0,1.52940018]
[1721357204308,0.077695,63890.0,63889.0,2.00914218]
[1721357204630,0.077695,63890.0,63889.0,2.10914218]
[1721357204797,0.077695,63890.0,63889.0,2.45624319]
[1721357204997,0.077695,63890.0,63889.0,2.45623138]
[1721357207427,0.077695,63890.0,63889.0,2.52656698]
[1721357208398,0.077695,63890.0,63889.0,2.52655569]
[1721357208621,0.077695,63890.0,63889.0,2.17946024]
[1721357208959,0.077695,63890.0,63889.0,2.15601285]
[1721357209899,0.077695,63890.0,63889.0,2.17946024]
[1721357210524,0.077695,63890.0,63889.0,2.10912896]
[1721357212298,0.077695,63890.0,63889.0,2.47651485]
[1721357212501,0.077695,63890.0,63889.0,1.99242896]
[1721357213020,0.077695,63890.0,63889.0,2.0392861]
[1721357214217,0.077695,63890.0,63889.0,2.0392832]
[1721357214418,0.077695,63890.0,63889.0,1.99242896]
[1721357214921,0.077695,63890.0,63889.0,2.0392832]
[1721357215884,0.077695,63890.0,63889.0,1.99242896]
[1721357216462,0.077695,63890.0,63889.0,2.03927916]
[1721357216805,0.077695,63890.0,63889.0,2.03927887]
[1721357217329,0.077695,63890.0,63889.0,1.99242896]
[1721357218247,0.077695,63890.0,63889.0,1.99242804]
[1721357219089,0.077695,63890.0,63889.0,2.03929842]
[1721357219604,0.05451,63890.0,63889.0,2.03929842]
[1721357220354,0.05451,63890.0,63889.0,1.99242804]
[1721357220776,0.05451,63890.0,63889.0,1.94242804]
[1721357220997,0.19841,63890.0,63889.0,0.42033958]
[1721357221154,0.354929,63890.0,63889.0,0.16595784]
[1721357221355,0.36743213,63890.0,63889.0,0.025913]
[1721357221958,0.36743213,63890.0,63889.0,0.014913]
[1721357222180,0.68047013,63890.0,63889.0,0.014913]
[1721357222379,0.99350813,63890.0,63889.0,0.017913]
[1721357222616,0.99350813,63890.0,63889.0,0.003913]
[1721357222820,0.36743213,63890.0,63889.0,0.003913]
[1721357223057,0.36743213,63890.0,63889.0,0.010913]
[1721357223590,0.36743213,63890.0,63889.0,0.015913]
[1721357223792,0.68047013,63890.0,63889.0,0.003913]
[1721357224430,0.68047013,63890.0,63889.0,0.000913]
[1721357224855,0.68047013,63890.0,63889.0,0.006913]
[1721357225287,0.68047013,63890.0,63889.0,0.005913]
[1721357225536,0.68047013,63890.0,63889.0,0.006913]
[1721357226342,0.21091313,63890.0,63889.0,1.03429974]
[1721357226538,0.21091313,63890.0,63889.0,0.72125774]
[1721357226875,0.19841,63890.0,63889.0,0.72125774]
[1721357227594,0.19841,63890.0,63889.0,0.71525774]
[1721357228135,0.19841,63890.0,63889.0,0.72525774]
[1721357229927,0.21088572,63890.0,63889.0,1.03829974]
[1721357230129,0.21088572,63890.0,63889.0,1.37434174]
[1721357230260,0.19841,63890.0,63889.0,1.37434174]
[1721357231261,0.19841,63890.0,63889.0,1.36734174]
[1721357231457,0.19841,63890.0,63889.0,1.3776429]
[1721357231663,0.19841,63890.0,63889.0,1.3746429]
[1721357231881,0.19841,63890.0,63889.0,1.3886429]
[1721357232112,0.19841,63890.0,63889.0,1.3976429]
[1721357232638,0.19841,63890.0,63889.0,1.3886429]
[1721357232842,0.19841,63890.0,63889.0,1.4886429]
[1721357232843,0.05451,63890.0,63889.0,1.4886429]
[1721357233025,0.05451,63890.0,63889.0,1.61863844]
[1721357233203,0.05451,63890.0,63889.0,1.66863844]
[1721357233405,0.05451,63890.0,63889.0,1.61863638]
[1721357234470,0.05451,63890.0,63889.0,1.4886429]
[1721357234687,0.05451,63890.0,63889.0,1.4986429]
[1721357235206,0.05534,63890.0,63889.0,1.4986429]
[1721357237164,0.05534,63890.0,63889.0,1.62863634]
[1721357237520,0.05534,63890.0,63889.0,1.62863633]
[1721357239468,0.05534,63890.0,63889.0,1.62863632]
[1721357239615,0.05534,63890.0,63889.0,1.4986429]
[1721357240266,0.05534,63890.0,63889.0,1.62863751]
[1721357243414,0.05534,63890.0,63889.0,1.62863727]
[1721357245257,0.05534,63890.0,63889.0,1.67863727]
[1721357246748,0.05534,63890.0,63889.0,1.62863727]
[1721357246947,0.05534,63890.0,63889.0,1.628637]
[1721357248031,0.05534,63890.0,63889.0,1.618637]
[1721357248352,0.05534,63890.0,63889.0,1.615637]
[1721357248563,0.19754,63890.0,63889.0,1.629637]
[1721357249347,0.19754,63890.0,63889.0,1.226195]
[1721357249551,0.667097,63890.0,63889.0,0.18029474]
[1721357249724,0.19754,63890.0,63889.0,0.18029474]
[1721357249927,0.21001562,63890.0,63889.0,0.18029474]
[1721357250747,0.36653462,63890.0,63889.0,0.18029474]
[1721357250946,0.36653462,63890.0,63889.0,0.025913]
[1721357250947,0.67957262,63890.0,63889.0,0.025913]
[1721357252291,0.67957262,63890.0,63889.0,0.011913]
[1721357252723,0.67957262,63890.0,63889.0,0.006913]
[1721357253099,0.67957262,63890.0,63889.0,0.008913]
[1721357253478,0.67957262,63890.0,63889.0,0.006913]
[1721357253922,0.67957262,63890.0,63889.0,0.003913]
[1721357254321,0.67957262,63890.0,63889.0,0.011913]
[1721357255106,1.39604862,63890.0,63889.0,0.011913]
[1721357255306,1.39604862,63890.0,63867.0,0.04688505]
[1721357255307,0.469659,63876.0,63875.0,0.002794]
[1721357255508,0.614359,63876.0,63875.0,0.15438174]
[1721357255725,0.6268148,63876.0,63875.0,0.15438174]
[1721357256538,0.6268148,63876.0,63875.0,0.16838174]
[1721357257012,0.6268148,63876.0,63875.0,0.15438174]
[1721357257322,0.6268148,63876.0,63875.0,0.15738174]
[1721357258767,0.6268148,63876.0,63875.0,0.16438174]
[1721357259124,0.9399208,63876.0,63875.0,0.01]
[1721357260734,0.1571558,63876.0,63875.0,0.16438174]
[1721357260941,0.1571558,63876.0,63875.0,0.25478174]
[1721357261225,0.1447,63876.0,63875.0,0.25478174]
[1721357261431,0.15710833,63876.0,63875.0,0.25478174]
[1721357261642,0.15710833,63876.0,63875.0,0.41133674]
[1721357261845,0.15710833,63876.0,63875.0,1.06055874]
[1721357261846,0.01240833,63876.0,63875.0,1.06055874]
[1721357262021,0.1428,63880.0,63879.0,0.469636]
[1721357262223,0.1428,63880.0,63879.0,0.71441774]
[1721357262555,0.15518844,63880.0,63879.0,0.71441774]
[1721357263140,0.15518844,63880.0,63879.0,0.40132674]
[1721357263354,0.15518844,63880.0,63879.0,0.31092674]
[1721357263887,0.1428,63880.0,63879.0,0.31092674]
[1721357264036,0.15518844,63880.0,63879.0,0.31092674]
[1721357264256,0.01238844,63880.0,63879.0,0.96010874]
[1721357264612,0.1407,63884.0,63883.0,0.156536]
[1721357264824,0.1407,63884.0,63883.0,0.31091774]
[1721357267479,0.1407,63884.0,63883.0,0.31191774]
[1721357267887,0.1437,63884.0,63883.0,0.31191774]
[1721357268292,0.1407,63884.0,63883.0,0.62498974]
[1721357268697,0.1407,63884.0,63883.0,0.62998974]
[1721357269724,0.0779,63884.0,63883.0,0.96606174]
[1721357269905,0.0666,63888.0,63883.0,0.96606174]
[1721357269906,0.1455,63888.0,63887.0,0.469578]
[1721357270055,0.1455,63888.0,63887.0,0.64695974]
[1721357272676,0.1455,63888.0,63887.0,0.96001174]
[1721357275505,0.1455,63888.0,63887.0,0.64695974]
[1721357276290,0.1455,63888.0,63887.0,0.96001174]
[1721357279041,0.1455,63888.0,63887.0,0.96601174]
[1721357279617,0.1455,63888.0,63887.0,0.96001174]
[1721357279824,0.1455,63888.0,63887.0,0.96601174]
[1721357280026,0.1455,63888.0,63887.0,0.97501174]
[1721357280228,0.1455,63888.0,63887.0,0.62995974]
[1721357280636,0.1455,63888.0,63887.0,0.63895974]
[1721357280857,0.1455,63888.0,63887.0,0.62995974]
[1721357281308,0.1455,63888.0,63887.0,0.63895974]
[1721357281504,0.15793221,63888.0,63887.0,0.63895974]
[1721357281707,0.15793221,63888.0,63887.0,0.62995974]
[1721357281877,0.15793221,63888.0,63887.0,0.63295974]
[1721357282050,0.15793221,63888.0,63887.0,0.63895974]
[1721357283069,0.15793221,63888.0,63887.0,0.63295974]
[1721357283278,0.15793221,63888.0,63887.0,0.62395974]
[1721357283478,0.15793221,63888.0,63887.0,0.62995974]
[1721357283798,0.15793221,63888.0,63887.0,0.63895974]
[1721357284061,0.15793221,63888.0,63887.0,0.62995974]
[1721357284326,0.15793221,63888.0,63887.0,0.63895974]
[1721357284830,0.15793221,63888.0,63887.0,0.16038174]
[1721357285076,0.15793221,63888.0,63887.0,0.16338174]
[1721357285310,0.15793221,63888.0,63887.0,0.16038174]
[1721357286006,0.15793221,63888.0,63887.0,0.15438174]
[1721357286238,0.15793221,63888.0,63887.0,0.15638174]
[1721357286696,0.94054921,63888.0,63887.0,0.002]
[1721357286867,0.62750221,63888.0,63887.0,0.011]
[1721357287099,0.15793221,63888.0,63887.0,0.002]
[1721357287505,0.15793221,63888.0,63887.0,0.008]
[1721357287663,0.31445521,63888.0,63887.0,0.008]
[1721357288237,0.62750221,63888.0,63887.0,0.008]
[1721357288435,0.94054921,63888.0,63887.0,0.008]
[1721357289674,0.62750221,63888.0,63887.0,0.008]
[1721357292211,0.94054921,63888.0,63887.0,0.008]
[1721357292419,0.62750221,63888.0,63887.0,0.008]
[1721357293853,0.94054921,63888.0,63887.0,0.008]
[1721357294071,0.96738395,63888.0,63887.0,0.008]
[1721357294477,1.28043095,63888.0,63887.0,0.008]
[1721357294680,1.29016447,63888.0,63887.0,0.008]
[1721357294879,1.29016447,63888.0,63887.0,0.006]
[1721357295051,1.26332973,63888.0,63887.0,0.006]
[1721357295233,0.46963,63880.0,63879.0,0.000913]
[1721357295435,0.61343,63880.0,63879.0,0.000913]
[1721357295643,0.62585794,63880.0,63879.0,0.000913]
[1721357297299,0.62585794,63880.0,63879.0,0.006913]
[1721357297838,0.62585794,63880.0,63879.0,0.008913]
[1721357301436,0.62585794,63880.0,63879.0,0.006913]
[1721357301637,0.62585794,63880.0,63879.0,0.001913]
[1721357301845,0.62585794,63880.0,63879.0,0.006913]
[1721357304291,0.62585794,63880.0,63879.0,0.005913]
[1721357304893,0.62585794,63880.0,63879.0,0.000913]
[1721357305070,0.62585794,63880.0,63879.0,0.001913]
[1721357309451,0.62585794,63880.0,63879.0,0.000913]
[1721357309653,0.62585794,63880.0,63879.0,0.001913]
[1721357310485,0.31277094,63880.0,63879.0,0.001913]
[1721357324005,0.62585794,63880.0,63879.0,0.001913]
[1721357324217,0.31277094,63880.0,63879.0,0.001913]
[1721357325677,0.31277094,63880.0,63879.0,0.002103]
[1721357326919,0.15622794,63880.0,63879.0,0.002103]
[1721357329364,0.01242794,63880.0,63879.0,0.93921174]
[1721357329576,0.1395,63883.0,63882.0,0.156538]
[1721357329769,0.1395,63883.0,63882.0,0.31091974]
[1721357330567,0.1395,63883.0,63882.0,0.15438174]
[1721357331612,0.1425,63883.0,63882.0,0.15438174]
[1721357332870,0.1395,63883.0,63882.0,0.15438174]
[1721357333313,0.174874,63883.0,63882.0,0.15438174]
[1721357333514,0.174874,63883.0,63882.0,0.15638174]
[1721357339359,0.18729191,63883.0,63882.0,0.15638174]
[1721357342065,0.34382791,63883.0,63882.0,0.15638174]
[1721357342858,0.34382791,63883.0,63882.0,0.002]
[1721357342859,1.06047191,63883.0,63882.0,0.002]
[1721357343060,1.45392856,63883.0,63882.0,0.002]
[1721357343261,1.38361723,63883.0,63882.0,0.002]
[1721357343617,0.98004523,63883.0,63882.0,0.002]
[1721357343824,0.96997191,63883.0,63882.0,0.002]
[1721357347323,1.04999687,63883.0,63882.0,0.002]
[1721357347529,1.07343061,63883.0,63882.0,0.002]
[1721357347847,1.5597144,63883.0,63882.0,0.002]
[1721357347986,0.302385,63863.0,63862.0,0.002794]
[1721357348216,0.469777,63860.0,63852.0,0.002794]
[1721357348407,0.469777,63860.0,63846.0,0.313252]
[1721357348408,0.873462,63860.0,63859.0,0.01101671]
[1721357348553,1.186647,63860.0,63859.0,0.000913]
[1721357348754,1.19904931,63860.0,63859.0,0.000913]
[1721357348979,1.86633538,63860.0,63859.0,0.000913]
[1721357349240,0.783157,63844.0,63843.0,0.002794]
[1721357349444,0.156646,63838.0,63836.0,0.000913]
[1721357349640,0.156646,63838.0,63836.0,0.15529474]
[1721357349796,0.156646,63838.0,63836.0,0.16545163]
[1721357350000,0.0123595,63837.0,63836.0,0.15529474]
[1721357350216,0.0123595,63837.0,63836.0,0.000913]
[1721357350217,0.4823045,63837.0,63836.0,0.000913]
[1721357350416,0.1690075,63837.0,63836.0,0.000913]
[1721357351206,0.0133595,63837.0,63836.0,0.013913]
[1721357351558,0.0133595,63837.0,63836.0,0.16829474]
[1721357352549,0.0133595,63837.0,63836.0,0.32494574]
[1721357352753,0.0133595,63837.0,63836.0,0.33394574]
[1721357353132,0.0133595,63837.0,63836.0,0.64724774]
[1721357353332,0.001,63837.0,63836.0,0.67024774]
[1721357353536,0.001,63837.0,63836.0,0.98354974]
[1721357361595,0.001,63837.0,63836.0,0.96054974]
[1721357363287,0.001,63837.0,63836.0,0.95903442]
[1721357363914,0.001,63837.0,63836.0,0.95994742]
[1721357367755,1.241439,63837.0,63836.0,0.02231068]
[1721357367951,0.928142,63837.0,63836.0,0.02231068]
[1721357368154,0.15717974,63837.0,63836.0,0.02231068]
[1721357368719,0.15717974,63837.0,63836.0,0.01331068]
[1721357369414,0.15717974,63837.0,63836.0,0.01531068]
[1721357369561,0.31282774,63837.0,63836.0,0.002913]
[1721357369760,0.15617974,63837.0,63836.0,0.002913]
[1721357369964,0.15617974,63837.0,63836.0,0.008913]
[1721357372835,0.15617974,63837.0,63836.0,0.165564]
[1721357373038,0.15617974,63837.0,63836.0,0.478866]
[1721357373241,0.01227974,63837.0,63836.0,0.94654974]
[1721357373445,0.0812,63843.0,63842.0,0.469909]
[1721357373666,0.0812,63843.0,63842.0,0.31101774]
[1721357373873,0.09347071,63843.0,63842.0,0.31101774]
[1721357374935,0.09547071,63843.0,63842.0,0.31101774]
[1721357376096,0.09547071,63843.0,63842.0,0.15438174]
[1721357376491,0.09547071,63843.0,63836.0,0.320215]
[1721357376492,0.40873871,63843.0,63837.0,0.156647]
[1721357376787,0.15664,63841.0,63838.0,0.15438174]
[1721357377283,0.01227117,63840.0,63838.0,0.15438174]
[1721357377488,0.48219517,63840.0,63839.0,0.13011448]
[1721357377716,0.54229517,63840.0,63839.0,0.13011448]
[1721357377949,0.22901217,63840.0,63839.0,0.13011448]
[1721357378178,0.54229517,63840.0,63839.0,0.13011448]
[1721357378404,0.54229517,63840.0,63836.0,0.000913]
[1721357378405,0.313297,63837.0,63836.0,0.000913]
[1721357378640,0.924542,63837.0,63836.0,0.000913]
[1721357378854,0.93681317,63837.0,63836.0,0.000913]
[1721357379827,1.37511989,63837.0,63836.0,0.012913]
[1721357380070,1.25011017,63837.0,63836.0,0.005913]
[1721357380305,1.25011017,63837.0,63836.0,0.010913]
[1721357381709,1.25011017,63837.0,63836.0,0.005913]
[1721357382193,1.25011017,63837.0,63836.0,0.002913]
[1721357382648,1.25011017,63837.0,63836.0,0.000913]
[1721357382855,1.25211017,63837.0,63836.0,0.000913]
[1721357383033,1.25311017,63837.0,63836.0,0.000913]
[1721357383238,1.25211017,63837.0,63836.0,0.000913]
[1721357383436,1.25011017,63837.0,63836.0,0.000913]
[1721357383646,1.25611017,63837.0,63836.0,0.001913]
[1721357385008,1.25411017,63837.0,63836.0,0.000913]
[1721357385216,1.25611017,63837.0,63836.0,0.000913]
[1721357385423,1.25711017,63837.0,63836.0,0.000913]
[1721357385822,1.25011017,63837.0,63836.0,0.000913]
[1721357386281,1.25611017,63837.0,63836.0,0.001913]
[1721357386653,1.25211017,63837.0,63836.0,0.001913]
[1721357386926,1.25211017,63837.0,63836.0,0.000913]
[1721357387502,0.156678,63825.0,63823.0,0.000163]
[1721357387699,0.156678,63825.0,63824.0,0.002794]
[1721357387936,0.156678,63825.0,63823.0,0.000163]
[1721357389157,0.156678,63825.0,63824.0,0.012]
[1721357390402,0.156678,63825.0,63823.0,0.000163]
[1721357390625,0.156678,63825.0,63824.0,0.009]
[1721357391814,0.156678,63825.0,63824.0,0.021]
[1721357392025,0.156678,63825.0,63824.0,0.012]
[1721357393055,0.156669,63829.0,63825.0,0.002794]
[1721357393663,0.0646,63834.0,63829.0,0.156667]
[1721357393835,0.221257,63834.0,63830.0,0.002794]
[1721357394228,0.156659,63833.0,63830.0,0.002794]
[1721357395777,0.313245,63848.0,63831.0,0.15438174]
[1721357395977,0.19723067,63857.0,63835.0,0.156653]
[1721357395978,0.300242,63840.0,63835.0,0.156653]
[1721357396120,0.1436,63840.0,63836.0,0.31382574]
[1721357396319,0.1436,63840.0,63836.0,0.31103174]
[1721357396548,0.300241,63840.0,63836.0,0.15438174]
[1721357396747,0.300241,63840.0,63837.0,0.002794]
[1721357398690,0.302241,63840.0,63837.0,0.002794]
[1721357398889,0.306241,63840.0,63837.0,0.002794]
[1721357399090,0.304241,63840.0,63837.0,0.002794]
[1721357399296,0.01220196,63839.0,63837.0,0.002794]
[1721357401092,0.01220196,63839.0,63836.0,0.15438174]
[1721357401335,0.16884596,63839.0,63837.0,0.002794]
[1721357401492,0.16884596,63839.0,63836.0,0.15438174]
[1721357401692,0.156646,63838.0,63836.0,0.15438174]
[1721357401900,0.32748996,63839.0,63831.0,0.156662]
[1721357402092,0.32748996,63839.0,63833.0,0.002794]
[1721357402093,0.0117794,63837.0,63833.0,0.002794]
[1721357402297,0.15665,63837.0,63834.0,0.15438174]